[Event "EYCC Open-U14 2019"]
[Site "Bratislava"]
[Date "2019.08.06"]
[Round "5.10"]
[White "Vojta, Jakub"]
[Black "Krupa, Miroslav"]
[Result "1-0"]
[ECO "B52"]
[WhiteElo "2238"]
[BlackElo "2114"]
[Annotator "NA"]
[PlyCount "153"]
[EventDate "2019.08.02"]
[EventType "swiss"]
[EventCountry "SVK"]
[SourceTitle "playchess.com"]
[Source "ChessBase"]
[SourceQuality "1"]
[TimeControl "40/5400+30:1800+30"]

1. e4 {[%emt 0:00:00]} c5 {[%emt 0:00:00]} 2. Nf3 {[%emt 0:00:00]} d6 {[%emt 0:00:00]} 3. Bb5+ {[%emt 0:00:00]} Bd7 {[%emt 0:00:00]} 4. Bxd7+ {[%emt 0:00:00]} Qxd7 {[%emt 0:00:00]} 5. c4 {[%emt 0:00:02]} Nc6 {[%emt 0:00:01]} 6. d4 {[%emt 0:02:05]} cxd4 {[%emt 0:00:56]} 7. Nxd4 {[%emt 0:02:03]} g6 {[%emt 0:00:40]} 8. Nc3 {[%emt 0:00:22]} Bg7 {[%emt 0:00:16]} 9. Be3 {[%emt 0:00:09]} Nf6 {[%emt 0:01:16]} 10. f3 {[%emt 0:00:39]} O-O {[%emt 0:00:21]} 11. O-O {[%emt 0:00:18]} a6 {[%emt 0:00:37]} 12. Qd2 {[%emt 0:01:44]} Nxd4 {[%emt 0:04:21]} 13. Bxd4 {[%emt 0:00:25]} b5 {[%emt 0:00:04]} 14. cxb5 {[%emt 0:08:06]} axb5 {[%emt 0:00:08]} 15. a3 {[%emt 0:00:57]} Rab8 {[%emt 0:11:10]} 16. Na2 {[%emt 0:07:14]} Rfc8 {[%emt 0:04:25]} 17. Rac1 {[%emt 0:04:36]} Qe6 {[%emt 0:02:47]} 18. Nb4 {[%emt 0:02:06]} Rc4 {[%emt 0:03:13]} 19. Nc6 {[%emt 0:02:29]} Rc8 {[%emt 0:02:53]} 20. Rxc4 {[%emt 0:00:34]} bxc4 {[%emt 0:00:05]} 21. Nb4 {[%emt 0:02:54]} Qd7 {[%emt 0:04:10]} 22. Qc2 {[%emt 0:03:41]} Qb5 {[%emt 0:17:09]} 23. Kh1 {[%emt 0:01:20]} e6 {[%emt 0:02:53]} 24. Rd1 {[%emt 0:02:04]} Rd8 {[%emt 0:04:42]} 25. Qc3 {[%emt 0:03:02]} Ne8 {[%emt 0:08:48]} 26. h3 {[%emt 0:11:13]} Bf8 {[%emt 0:05:16]} 27. Nc2 {[%emt 0:01:59]} d5 {[%emt 0:08:43]} 28. exd5 {[%emt 0:02:37]} exd5 {[%emt 0:00:02]} 29. Ne3 {[%emt 0:02:23]} Qb7 {[%emt 0:10:31]} 30. Qd2 {[%emt 0:06:18]} Bh6 {[%emt 0:03:22]} 31. Qf2 {[%emt 0:00:05]} Bxe3 {[%emt 0:04:45]} 32. Qxe3 {[%emt 0:00:53]} Ng7 {[%emt 0:01:08]} 33. Qe5 {[%emt 0:02:35]} f5 {[%emt 0:00:22]} 34. Re1 {[%emt 0:00:08]} Qf7 {[%emt 0:00:39]} 35. a4 h6 {[%emt 0:00:54]} 36. a5 {[%emt 0:09:51]} Kh7 {[%emt 0:00:46]} 37. Qf6 {[%emt 0:02:05]} Qxf6 {[%emt 0:00:27]} 38. Bxf6 {[%emt 0:00:02]} Rd6 {[%emt 0:00:13]} 39. Be5 {[%emt 0:03:43]} Re6 {[%emt 0:00:49]} 40. f4 {[%emt 0:00:00]} Ra6 {[%emt 0:00:00]} 41. Ra1 {[%emt 0:10:15]} Ne6 {[%emt 0:01:43]} 42. g3 {[%emt 0:02:24]} g5 {[%emt 0:10:49]} 43. Kg2 {[%emt 0:00:26]} Kg6 {[%emt 0:00:20]} 44. Kf3 {[%emt 0:00:18]} h5 {[%emt 0:06:44]} 45. h4 {[%emt 0:01:32]} g4+ {[%emt 0:00:34]} 46. Ke3 {[%emt 0:00:07]} Kf7 {[%emt 0:00:33]} 47. Bd4 {[%emt 0:00:43]} Nd8 {[%emt 0:02:58]} 48. Bb6 {[%emt 0:02:10]} Nc6 {[%emt 0:00:46]} 49. Kd2 {[%emt 0:00:33]} Ke6 {[%emt 0:02:39]} 50. Kc3 {[%emt 0:00:13]} Kd6 {[%emt 0:02:13]} 51. b4 {[%emt 0:00:30]} cxb3 {[%emt 0:00:25]} 52. Kxb3 {[%emt 0:00:08]} Ra8 {[%emt 0:00:54]} 53. Ka4 {[%emt 0:00:49]} Nb8 {[%emt 0:05:06]} 54. Kb5 {[%emt 0:01:25]} Nd7 {[%emt 0:00:06]} 55. a6 {[%emt 0:08:00]} Nxb6 {[%emt 0:02:03]} 56. Kxb6 {[%emt 0:00:02]} Rb8+ {[%emt 0:00:07]} 57. Ka5 {[%emt 0:00:14]} d4 {[%emt 0:00:23]} 58. a7 {[%emt 0:00:29]} Ra8 {[%emt 0:00:14]} 59. Kb6 {[%emt 0:01:05]} Kd5 {[%emt 0:00:11]} 60. Kb7 {[%emt 0:07:44]} Rd8 {[%emt 0:01:15]} 61. a8=Q {[%emt 0:04:31]} Rxa8 {[%emt 0:00:05]} 62. Rxa8 {[%emt 0:00:38]} d3 {[%emt 0:00:40]} 63. Rd8+ {[%emt 0:01:17]} Ke4 {[%emt 0:00:22]} 64. Kc6 {[%emt 0:00:07]} Ke3 {[%emt 0:00:37]} 65. Kd5 {[%emt 0:02:11]} Kf3 {[%emt 0:00:21]} 66. Ke5 {[%emt 0:00:43]} Kxg3 {[%emt 0:00:07]} 67. Kxf5 {[%emt 0:00:59]} Kxh4 {[%emt 0:00:09]} 68. Ke4 {[%emt 0:00:44]} g3 {[%emt 0:01:00]} 69. Kxd3 {[%emt 0:03:46]} Kh3 {[%emt 0:01:05]} 70. f5 {[%emt 0:00:21]} h4 {[%emt 0:00:50]} 71. f6 {[%emt 0:00:13]} g2 {[%emt 0:00:27]} 72. Rg8 {[%emt 0:00:08]} Kh2 {[%emt 0:00:08]} 73. f7 {[%emt 0:00:10]} h3 {[%emt 0:00:16]} 74. f8=Q {[%emt 0:00:20]} g1=Q {[%emt 0:01:11]} 75. Qf4+ {[%emt 0:00:57]} Kh1 {[%emt 0:00:08]} 76. Rxg1+ {[%emt 0:00:07]} Kxg1 {[%emt 0:00:08]} 77. Qg3+ {[%emt 0:00:03]} 1-0

[Event "EYCC Open-U14 2019"]
[Site "Bratislava"]
[Date "2019.08.06"]
[Round "5.11"]
[White "Fernandez Lopez, Ruben"]
[Black "Chyzy, Jakub"]
[Result "0-1"]
[ECO "C70"]
[WhiteElo "2207"]
[BlackElo "2093"]
[Annotator "NA"]
[PlyCount "84"]
[EventDate "2019.08.02"]
[EventType "swiss"]
[EventCountry "SVK"]
[SourceTitle "playchess.com"]
[Source "ChessBase"]
[SourceQuality "1"]
[TimeControl "40/5400+30:1800+30"]

1. e4 {[%emt 0:00:00]} e5 {[%emt 0:00:00]} 2. Nf3 {[%emt 0:00:00]} Nc6 {[%emt 0:00:00]} 3. Bb5 {[%emt 0:00:00]} a6 {[%emt 0:00:00]} 4. Ba4 {[%emt 0:00:00]} Nge7 {[%emt 0:00:00]} 5. c3 {[%emt 0:00:21]} g6 {[%emt 0:00:14]} 6. d4 {[%emt 0:01:20]} exd4 {[%emt 0:00:32]} 7. cxd4 {[%emt 0:00:11]} b5 {[%emt 0:00:33]} 8. Bb3 {[%emt 0:00:15]} Bg7 {[%emt 0:00:10]} 9. Nc3 {[%emt 0:03:49]} O-O {[%emt 0:00:13]} 10. Bg5 {[%emt 0:01:12]} h6 {[%emt 0:02:18]} 11. Bh4 {[%emt 0:01:36]} g5 {[%emt 0:04:00]} 12. Bg3 {[%emt 0:05:20]} d6 {[%emt 0:02:01]} 13. h3 {[%emt 0:03:13]} Na5 {[%emt 0:05:54]} 14. Bc2 {[%emt 0:10:38]} Nc4 {[%emt 0:21:11]} 15. b3 {[%emt 0:02:55]} Na3 {[%emt 0:02:09]} 16. Bd3 {[%emt 0:01:42]} c5 {[%emt 0:01:35]} 17. Rc1 {[%emt 0:01:13]} cxd4 {[%emt 0:16:21]} 18. Ne2 {[%emt 0:01:50]} Qb6 {[%emt 0:01:51]} 19. Qd2 {[%emt 0:01:22]} b4 {[%emt 0:02:41]} 20. Bc4 {[%emt 0:02:30]} Nxc4 {[%emt 0:01:04]} 21. Rxc4 {[%emt 0:00:02]} a5 {[%emt 0:02:31]} 22. h4 {[%emt 0:04:06]} g4 {[%emt 0:07:20]} 23. Nfxd4 {[%emt 0:00:20]} Ba6 {[%emt 0:00:31]} 24. Rc1 {[%emt 0:00:09]} Rac8 {[%emt 0:02:21]} 25. Rd1 {[%emt 0:00:09]} Rfd8 {[%emt 0:08:04]} 26. O-O {[%emt 0:00:07]} Bxd4 {[%emt 0:01:04]} 27. Nxd4 Bxf1 {[%emt 0:02:11]} 28. Kxf1 {[%emt 0:00:26]} d5 {[%emt 0:00:46]} 29. e5 {[%emt 0:00:01]} Qg6 {[%emt 0:00:55]} 30. Kg1 {[%emt 0:01:53]} Kh7 {[%emt 0:09:16]} 31. Qf4 {[%emt 0:01:43]} Rc5 {[%emt 0:01:43]} 32. h5 {[%emt 0:01:02]} Qxh5 {[%emt 0:01:24]} 33. Qf6 {[%emt 0:00:01]} Rdc8 {[%emt 0:02:59]} 34. Qxe7 {[%emt 0:02:10]} Rc1 {[%emt 0:00:06]} 35. Rf1 {[%emt 0:00:03]} Rxf1+ {[%emt 0:01:01]} 36. Kxf1 {[%emt 0:00:01]} Rc1+ {[%emt 0:00:11]} 37. Ke2 {[%emt 0:00:01]} Qg6 {[%emt 0:00:25]} 38. Kd2 {[%emt 0:01:29]} Rc3 {[%emt 0:00:11]} 39. Ne2 {[%emt 0:01:47]} Qc2+ {[%emt 0:00:17]} 40. Ke1 {[%emt 0:00:00]} Qb1+ {[%emt 0:00:00]} 41. Nc1 {[%emt 0:00:06]} Qxc1+ {[%emt 0:00:12]} 42. Ke2 Qb2+ {[%emt 0:00:07]} 0-1

[Event "EYCC Open-U14 2019"]
[Site "Bratislava"]
[Date "2019.08.06"]
[Round "5.12"]
[White "Antonica, Dragos-Andrei"]
[Black "Hak, David"]
[Result "1-0"]
[ECO "A48"]
[WhiteElo "2124"]
[BlackElo "2012"]
[Annotator "NA"]
[PlyCount "81"]
[EventDate "2019.08.02"]
[EventType "swiss"]
[EventCountry "SVK"]
[SourceTitle "playchess.com"]
[Source "ChessBase"]
[SourceQuality "1"]
[TimeControl "40/5400+30:1800+30"]

1. d4 {[%emt 0:00:00]} Nf6 {[%emt 0:00:00]} 2. Nf3 {[%emt 0:00:00]} g6 3. Bg5 {[%emt 0:00:00]} Bg7 {[%emt 0:00:00]} 4. Nbd2 {[%emt 0:00:38]} d5 {[%emt 0:01:35]} 5. c3 {[%emt 0:01:08]} c5 {[%emt 0:03:38]} 6. e3 {[%emt 0:04:54]} O-O {[%emt 0:00:55]} 7. Be2 {[%emt 0:01:54]} Qb6 {[%emt 0:08:52]} 8. Qb3 {[%emt 0:00:23]} c4 {[%emt 0:05:02]} 9. Qa3 {[%emt 0:00:11]} Nc6 {[%emt 0:06:48]} 10. O-O {[%emt 0:11:36]} h6 {[%emt 0:09:33]} 11. Bh4 {[%emt 0:06:13]} Qd8 {[%emt 0:14:44]} 12. Bxf6 {[%emt 0:18:32]} Bxf6 {[%emt 0:03:23]} 13. b3 {[%emt 0:00:10]} b5 {[%emt 0:09:29]} 14. Qc5 {[%emt 0:07:54]} Qb6 {[%emt 0:11:12]} 15. Qxd5 {[%emt 0:14:21]} Bb7 {[%emt 0:01:46]} 16. Ne4 {[%emt 0:04:49]} Bg7 {[%emt 0:07:44]} 17. Qc5 {[%emt 0:05:05]} Nxd4 {[%emt 0:03:31]} 18. cxd4 {[%emt 0:03:29]} Bxe4 {[%emt 0:00:20]} 19. Qxb6 {[%emt 0:02:14]} axb6 {[%emt 0:00:02]} 20. bxc4 {[%emt 0:00:40]} Rfc8 {[%emt 0:04:55]} 21. Rfc1 {[%emt 0:05:02]} Rc7 {[%emt 0:03:02]} 22. cxb5 {[%emt 0:04:12]} Rxa2 {[%emt 0:01:26]} 23. Kf1 {[%emt 0:01:45]} Rcc2 {[%emt 0:00:57]} 24. Rxa2 {[%emt 0:01:02]} Rxc1+ {[%emt 0:00:09]} 25. Ne1 {[%emt 0:00:04]} Bxg2+ {[%emt 0:02:36]} 26. Kxg2 {[%emt 0:00:06]} Rxe1 {[%emt 0:00:04]} 27. Ra8+ {[%emt 0:01:32]} Kh7 {[%emt 0:00:46]} 28. Bc4 {[%emt 0:00:09]} e6 {[%emt 0:00:40]} 29. Rb8 {[%emt 0:00:37]} Rc1 {[%emt 0:00:16]} 30. Be2 {[%emt 0:03:01]} Re1 {[%emt 0:00:40]} 31. Bf3 {[%emt 0:00:34]} Rb1 {[%emt 0:00:36]} 32. Rxb6 {[%emt 0:00:16]} Bf6 {[%emt 0:00:35]} 33. Rb7 {[%emt 0:01:00]} Kg8 {[%emt 0:00:33]} 34. Rb8+ {[%emt 0:01:44]} Kg7 {[%emt 0:00:06]} 35. b6 {[%emt 0:00:16]} Be7 {[%emt 0:00:39]} 36. b7 {[%emt 0:00:22]} Bd6 {[%emt 0:00:08]} 37. Rd8 {[%emt 0:00:13]} Bc7 {[%emt 0:00:10]} 38. Rd7 {[%emt 0:00:22]} Bb8 {[%emt 0:00:37]} 39. d5 {[%emt 0:01:48]} Kf6 {[%emt 0:00:37]} 40. d6 {[%emt 0:00:00]} Ba7 {[%emt 0:00:00]} 41. Rd8 {[%emt 0:01:28]} 1-0

[Event "EYCC Open-U14 2019"]
[Site "Bratislava"]
[Date "2019.08.06"]
[Round "5.13"]
[White "Tsaruk, Maksim"]
[Black "Fardet, Elouan"]
[Result "1-0"]
[ECO "B54"]
[WhiteElo "2230"]
[BlackElo "2047"]
[Annotator "NA"]
[PlyCount "97"]
[EventDate "2019.08.02"]
[EventType "swiss"]
[EventCountry "SVK"]
[SourceTitle "playchess.com"]
[Source "ChessBase"]
[SourceQuality "1"]
[TimeControl "40/5400+30:1800+30"]

1. e4 {[%emt 0:00:00]} c5 {[%emt 0:00:00]} 2. Nf3 {[%emt 0:00:14]} d6 {[%emt 0:00:00]} 3. d4 {[%emt 0:01:39]} cxd4 {[%emt 0:00:00]} 4. Nxd4 {[%emt 0:00:03]} Nf6 {[%emt 0:00:00]} 5. f3 {[%emt 0:00:41]} e5 {[%emt 0:02:00]} 6. Nb3 {[%emt 0:00:07]} Be7 {[%emt 0:03:56]} 7. c4 {[%emt 0:00:08]} O-O {[%emt 0:02:45]} 8. Nc3 {[%emt 0:01:09]} Be6 {[%emt 0:02:29]} 9. Be3 {[%emt 0:00:19]} a6 {[%emt 0:04:59]} 10. Be2 {[%emt 0:05:22]} Nbd7 {[%emt 0:00:44]} 11. Nd5 {[%emt 0:10:02]} Bxd5 {[%emt 0:03:15]} 12. cxd5 {[%emt 0:05:37]} Nh5 {[%emt 0:10:22]} 13. Qd2 {[%emt 0:00:06]} a5 {[%emt 0:09:06]} 14. Bb5 {[%emt 0:15:32]} a4 {[%emt 0:03:03]} 15. Nc1 {[%emt 0:00:04]} Nc5 {[%emt 0:01:55]} 16. Ne2 {[%emt 0:01:22]} Qb6 {[%emt 0:17:04]} 17. Nc3 {[%emt 0:01:30]} h6 {[%emt 0:03:23]} 18. Bxa4 {[%emt 0:06:13]} Bg5 {[%emt 0:01:29]} 19. Bxg5 {[%emt 0:27:54]} hxg5 {[%emt 0:00:08]} 20. Bb5 {[%emt 0:00:10]} Nb3 {[%emt 0:05:11]} 21. Qf2 {[%emt 0:00:03]} Qxf2+ {[%emt 0:00:30]} 22. Kxf2 {[%emt 0:00:03]} Nxa1 {[%emt 0:00:06]} 23. Rxa1 {[%emt 0:00:03]} Rfc8 {[%emt 0:03:22]} 24. a4 {[%emt 0:00:46]} Kf8 {[%emt 0:01:47]} 25. Ra3 {[%emt 0:01:00]} Ke7 {[%emt 0:01:15]} 26. Ke3 {[%emt 0:03:35]} Nf6 {[%emt 0:01:19]} 27. h3 {[%emt 0:00:45]} Nd7 {[%emt 0:02:10]} 28. Kd2 {[%emt 0:02:51]} g6 {[%emt 0:03:09]} 29. a5 {[%emt 0:03:19]} f5 {[%emt 0:02:29]} 30. Bxd7 {[%emt 0:02:32]} Kxd7 {[%emt 0:03:51]} 31. Na4 {[%emt 0:00:05]} Rxa5 {[%emt 0:05:13]} 32. Nb6+ {[%emt 0:00:05]} Kc7 {[%emt 0:00:07]} 33. Rc3+ {[%emt 0:00:27]} Rc5 {[%emt 0:00:10]} 34. Rxc5+ {[%emt 0:01:10]} dxc5 {[%emt 0:00:05]} 35. Nxc8 {[%emt 0:00:04]} Kxc8 {[%emt 0:00:04]} 36. b4 {[%emt 0:06:54]} c4 {[%emt 0:03:08]} 37. b5 {[%emt 0:00:41]} Kc7 {[%emt 0:00:19]} 38. Kc3 {[%emt 0:00:35]} b6 {[%emt 0:00:39]} 39. exf5 {[%emt 0:05:26]} gxf5 {[%emt 0:00:03]} 40. Kxc4 {[%emt 0:00:00]} Kd6 {[%emt 0:00:00]} 41. g3 {[%emt 0:03:38]} Ke7 {[%emt 0:02:24]} 42. f4 {[%emt 0:03:24]} exf4 {[%emt 0:10:40]} 43. gxf4 {[%emt 0:00:04]} g4 {[%emt 0:00:05]} 44. hxg4 {[%emt 0:00:03]} fxg4 {[%emt 0:00:02]} 45. Kd4 {[%emt 0:00:04]} Kd6 {[%emt 0:00:42]} 46. Ke4 {[%emt 0:00:54]} Kc5 {[%emt 0:00:51]} 47. f5 {[%emt 0:00:13]} g3 {[%emt 0:00:46]} 48. Kf3 {[%emt 0:00:04]} Kxd5 {[%emt 0:00:46]} 49. Kxg3 {[%emt 0:00:07]} 1-0

[Event "EYCC Open-U14 2019"]
[Site "Bratislava"]
[Date "2019.08.06"]
[Round "5.14"]
[White "Rozen, Eytan"]
[Black "Neumann, Filip"]
[Result "1-0"]
[ECO "D30"]
[WhiteElo "2260"]
[BlackElo "1982"]
[Annotator "NA"]
[PlyCount "77"]
[EventDate "2019.08.02"]
[EventType "swiss"]
[EventCountry "SVK"]
[SourceTitle "playchess.com"]
[Source "ChessBase"]
[SourceQuality "1"]
[TimeControl "40/5400+30:1800+30"]

1. d4 {[%emt 0:00:00]} d5 {[%emt 0:00:00]} 2. c4 {[%emt 0:00:00]} e6 {[%emt 0:00:00]} 3. Nf3 {[%emt 0:00:02]} Nf6 {[%emt 0:00:00]} 4. g3 {[%emt 0:00:23]} Bb4+ {[%emt 0:00:14]} 5. Bd2 {[%emt 0:00:38]} Be7 {[%emt 0:00:10]} 6. Bg2 {[%emt 0:00:11]} O-O {[%emt 0:00:15]} 7. O-O {[%emt 0:01:05]} c6 {[%emt 0:00:22]} 8. b3 {[%emt 0:01:02]} Nbd7 {[%emt 0:01:42]} 9. Bc3 Ne4 {[%emt 0:09:01]} 10. Qc2 {[%emt 0:07:33]} b6 {[%emt 0:03:30]} 11. Nbd2 {[%emt 0:00:35]} Nxc3 {[%emt 0:03:24]} 12. Qxc3 {[%emt 0:00:15]} Bb7 {[%emt 0:02:26]} 13. b4 {[%emt 0:06:56]} dxc4 {[%emt 0:09:23]} 14. Nxc4 {[%emt 0:03:32]} c5 {[%emt 0:05:11]} 15. bxc5 {[%emt 0:01:13]} bxc5 {[%emt 0:01:38]} 16. Rad1 {[%emt 0:01:54]} Rc8 {[%emt 0:14:58]} 17. Nfe5 {[%emt 0:06:54]} Bxg2 {[%emt 0:04:17]} 18. Kxg2 {[%emt 0:01:02]} Qc7 {[%emt 0:07:47]} 19. d5 {[%emt 0:08:15]} Nxe5 {[%emt 0:03:09]} 20. Qxe5 {[%emt 0:02:46]} Qxe5 {[%emt 0:04:47]} 21. Nxe5 {[%emt 0:00:01]} exd5 {[%emt 0:07:32]} 22. Rxd5 {[%emt 0:00:02]} f6 {[%emt 0:05:12]} 23. Rd7 {[%emt 0:10:37]} Bd8 {[%emt 0:01:35]} 24. Nc4 {[%emt 0:00:47]} Bb6 {[%emt 0:01:51]} 25. Rfd1 {[%emt 0:01:07]} Rb8 {[%emt 0:01:59]} 26. a4 {[%emt 0:01:37]} Rfc8 {[%emt 0:03:10]} 27. a5 {[%emt 0:04:07]} Bc7 {[%emt 0:00:30]} 28. Re7 {[%emt 0:01:17]} Rb4 {[%emt 0:05:00]} 29. Rdd7 {[%emt 0:00:14]} Rxc4 {[%emt 0:00:07]} 30. Rxg7+ {[%emt 0:00:05]} Kf8 {[%emt 0:00:15]} 31. Rxh7 {[%emt 0:00:29]} Ke8 {[%emt 0:00:12]} 32. Rhe7+ {[%emt 0:00:38]} Kf8 {[%emt 0:00:06]} 33. Rxc7 {[%emt 0:00:05]} Rxc7 {[%emt 0:00:41]} 34. Rxc7 {[%emt 0:00:02]} a6 {[%emt 0:00:18]} 35. Rc6 {[%emt 0:00:22]} Ra4 {[%emt 0:00:07]} 36. Rxf6+ {[%emt 0:00:32]} Ke7 {[%emt 0:00:05]} 37. Rxa6 {[%emt 0:00:06]} Kd7 {[%emt 0:00:11]} 38. Rb6 {[%emt 0:00:40]} Rxa5 {[%emt 0:00:05]} 39. Rb1 {[%emt 0:00:42]} 1-0

[Event "EYCC Open-U14 2019"]
[Site "Bratislava"]
[Date "2019.08.06"]
[Round "5.15"]
[White "Weihrauch, Jakob"]
[Black "Grigoryan, Aram"]
[Result "1-0"]
[ECO "C01"]
[WhiteElo "2201"]
[BlackElo "1947"]
[Annotator "NA"]
[PlyCount "43"]
[EventDate "2019.08.02"]
[EventType "swiss"]
[EventCountry "SVK"]
[SourceTitle "playchess.com"]
[Source "ChessBase"]
[SourceQuality "1"]
[TimeControl "40/5400+30:1800+30"]

1. e4 {[%emt 0:00:00]} e6 {[%emt 0:00:00]} 2. d4 {[%emt 0:00:00]} d5 {[%emt 0:00:00]} 3. exd5 {[%emt 0:00:18]} exd5 {[%emt 0:00:06]} 4. Nf3 {[%emt 0:00:12]} Nc6 {[%emt 0:01:09]} 5. Bb5 {[%emt 0:00:21]} Bd6 {[%emt 0:00:29]} 6. c4 {[%emt 0:01:05]} Bb4+ {[%emt 0:04:16]} 7. Kf1 {[%emt 0:08:33]} Nf6 {[%emt 0:05:54]} 8. c5 {[%emt 0:01:33]} Ne4 {[%emt 0:14:15]} 9. Qa4 {[%emt 0:09:04]} a5 {[%emt 0:05:27]} 10. a3 {[%emt 0:02:51]} Bxc5 {[%emt 0:01:01]} 11. dxc5 {[%emt 0:00:20]} O-O {[%emt 0:00:12]} 12. Be3 {[%emt 0:02:40]} Qf6 {[%emt 0:04:44]} 13. Bxc6 {[%emt 0:03:34]} Qxb2 {[%emt 0:12:06]} 14. Qd4 {[%emt 0:02:22]} Qxd4 {[%emt 0:00:06]} 15. Nxd4 {[%emt 0:00:07]} bxc6 {[%emt 0:00:02]} 16. Nxc6 {[%emt 0:01:03]} Bb7 {[%emt 0:00:12]} 17. Ne7+ {[%emt 0:06:38]} Kh8 {[%emt 0:00:01]} 18. Nf5 {[%emt 0:04:13]} Rfe8 {[%emt 0:03:16]} 19. Nd2 {[%emt 0:03:14]} Nc3 {[%emt 0:04:12]} 20. h3 {[%emt 0:03:25]} d4 {[%emt 0:04:01]} 21. Nxd4 {[%emt 0:01:19]} Rad8 {[%emt 0:00:08]} 22. N2f3 {[%emt 0:02:32]} 1-0

[Event "EYCC Open-U14 2019"]
[Site "Bratislava"]
[Date "2019.08.06"]
[Round "5.16"]
[White "Bochnicka, Vladimir"]
[Black "Backiel, Hubert"]
[Result "1-0"]
[ECO "B34"]
[WhiteElo "2169"]
[BlackElo "1748"]
[Annotator "NA"]
[PlyCount "83"]
[EventDate "2019.08.02"]
[EventType "swiss"]
[EventCountry "SVK"]
[SourceTitle "playchess.com"]
[Source "ChessBase"]
[SourceQuality "1"]
[TimeControl "40/5400+30:1800+30"]

1. e4 {[%emt 0:00:00]} c5 {[%emt 0:00:00]} 2. Nf3 {[%emt 0:00:00]} Nc6 {[%emt 0:00:23]} 3. d4 {[%emt 0:00:00]} cxd4 {[%emt 0:00:20]} 4. Nxd4 {[%emt 0:00:00]} Nf6 {[%emt 0:00:19]} 5. Nc3 {[%emt 0:00:00]} e5 {[%emt 0:00:32]} 6. Ndb5 {[%emt 0:00:02]} d6 {[%emt 0:00:24]} 7. Nd5 {[%emt 0:00:44]} Nxd5 {[%emt 0:00:51]} 8. exd5 {[%emt 0:00:06]} Nb8 {[%emt 0:01:02]} 9. a4 {[%emt 0:00:08]} Be7 {[%emt 0:01:01]} 10. Be2 {[%emt 0:00:07]} O-O {[%emt 0:00:33]} 11. O-O {[%emt 0:00:06]} f5 {[%emt 0:02:51]} 12. f4 {[%emt 0:00:31]} a6 {[%emt 0:00:37]} 13. Na3 {[%emt 0:00:10]} Nd7 {[%emt 0:00:48]} 14. Nc4 {[%emt 0:01:19]} e4 {[%emt 0:02:15]} 15. a5 {[%emt 0:12:07]} b5 {[%emt 0:09:26]} 16. axb6 {[%emt 0:00:06]} Nxb6 {[%emt 0:00:08]} 17. Be3 {[%emt 0:00:34]} Nxc4 {[%emt 0:00:34]} 18. Bxc4 {[%emt 0:00:06]} Qc7 {[%emt 0:15:07]} 19. Qe2 {[%emt 0:09:57]} Bf6 {[%emt 0:02:34]} 20. c3 {[%emt 0:00:43]} a5 {[%emt 0:04:44]} 21. Ra3 {[%emt 0:19:31]} Bb7 {[%emt 0:16:55]} 22. Rfa1 {[%emt 0:05:59]} Rfc8 {[%emt 0:08:24]} 23. Bb3 {[%emt 0:08:19]} Bd8 {[%emt 0:08:40]} 24. c4 {[%emt 0:16:40]} Ba6 {[%emt 0:03:21]} 25. Qf2 {[%emt 0:05:42]} Qb7 {[%emt 0:01:11]} 26. Ba4 {[%emt 0:07:48]} Qf7 {[%emt 0:08:32]} 27. Bc6 {[%emt 0:01:33]} Rab8 {[%emt 0:00:01]} 28. b3 {[%emt 0:02:28]} Rb4 {[%emt 0:03:05]} 29. h3 {[%emt 0:03:03]} Bb7 {[%emt 0:00:39]} 30. Ba4 {[%emt 0:00:30]} Bf6 {[%emt 0:02:45]} 31. Rd1 {[%emt 0:02:29]} Qh5 {[%emt 0:00:29]} 32. Rf1 {[%emt 0:01:07]} Bh4 {[%emt 0:02:25]} 33. g3 {[%emt 0:00:42]} Bf6 {[%emt 0:00:17]} 34. Bd7 {[%emt 0:02:18]} Rb8 {[%emt 0:00:50]} 35. Be6+ {[%emt 0:00:13]} Kh8 {[%emt 0:01:00]} 36. Kg2 {[%emt 0:01:29]} Ba6 {[%emt 0:01:54]} 37. g4 {[%emt 0:01:05]} fxg4 {[%emt 0:01:17]} 38. hxg4 {[%emt 0:00:02]} Qe8 {[%emt 0:00:53]} 39. g5 {[%emt 0:00:36]} Be7 {[%emt 0:00:01]} 40. Rh1 {[%emt 0:00:00]} Bf8 {[%emt 0:00:00]} 41. Rxh7+ {[%emt 0:01:02]} Kxh7 {[%emt 0:03:24]} 42. Qh4+ 1-0

[Event "EYCC Open-U14 2019"]
[Site "Bratislava"]
[Date "2019.08.06"]
[Round "5.17"]
[White "Pasztor, Balazs"]
[Black "Fule, Simon"]
[Result "1/2-1/2"]
[ECO "C55"]
[WhiteElo "2140"]
[BlackElo "2184"]
[Annotator "NA"]
[PlyCount "48"]
[EventDate "2019.08.02"]
[EventType "swiss"]
[EventCountry "SVK"]
[SourceTitle "playchess.com"]
[Source "ChessBase"]
[SourceQuality "1"]
[TimeControl "40/5400+30:1800+30"]

1. e4 {[%emt 0:00:00]} e5 {[%emt 0:00:00]} 2. Nf3 {[%emt 0:00:00]} Nc6 {[%emt 0:00:00]} 3. Bc4 {[%emt 0:00:00]} Nf6 {[%emt 0:00:00]} 4. d3 {[%emt 0:00:09]} h6 {[%emt 0:00:20]} 5. O-O {[%emt 0:00:29]} d6 {[%emt 0:00:06]} 6. c3 {[%emt 0:00:16]} g5 {[%emt 0:00:46]} 7. Nbd2 {[%emt 0:00:44]} Bg7 {[%emt 0:01:03]} 8. Bb3 {[%emt 0:01:00]} O-O {[%emt 0:03:24]} 9. Nc4 {[%emt 0:01:40]} Ne7 {[%emt 0:02:09]} 10. Re1 {[%emt 0:05:55]} Ng6 {[%emt 0:00:36]} 11. d4 {[%emt 0:02:20]} exd4 {[%emt 0:00:09]} 12. Nxd4 {[%emt 0:04:41]} Nxe4 {[%emt 0:00:11]} 13. Rxe4 {[%emt 0:05:52]} d5 {[%emt 0:00:06]} 14. Re1 {[%emt 0:02:05]} dxc4 {[%emt 0:00:08]} 15. Bxc4 {[%emt 0:00:40]} Qf6 {[%emt 0:00:25]} 16. Be3 {[%emt 0:04:16]} Ne5 {[%emt 0:05:44]} 17. Be2 {[%emt 0:02:18]} b6 {[%emt 0:06:18]} 18. Nf3 {[%emt 0:05:00]} Bb7 {[%emt 0:12:26]} 19. Bd4 {[%emt 0:06:59]} Nxf3+ {[%emt 0:00:32]} 20. Bxf3 {[%emt 0:00:29]} Bxf3 {[%emt 0:00:11]} 21. Bxf6 {[%emt 0:01:19]} Bxd1 {[%emt 0:00:07]} 22. Bxg7 {[%emt 0:00:07]} Kxg7 {[%emt 0:00:05]} 23. Raxd1 {[%emt 0:00:36]} Rad8 {[%emt 0:00:25]} 24. Kf1 {[%emt 0:04:35]} Kf6 {[%emt 0:01:11]} 1/2-1/2